bitfinex-derivatives/quotes_ETHF0:USTF0_20260112
["timestamp","ask_amount","ask_price","bid_price","bid_amount"]
[1768261919550,0.94158876,3097.1,3096.2,0.30803288]
[1768261919845,0.94158876,3097.0,3096.2,0.30803288]
[1768261920044,0.94158876,3096.9,3096.2,0.30803288]
[1768261920344,0.94158876,3096.8,3096.2,0.30803288]
[1768261920656,0.00365602,3097.2,3096.2,0.30803288]
[1768261920856,0.94158436,3097.1,3096.2,0.30803288]
[1768261921059,0.94158436,3097.0,3096.2,0.30803288]
[1768261921355,0.94158436,3096.9,3096.2,0.30803288]
[1768261921553,0.94158436,3096.8,3096.2,0.30803288]
[1768261921757,0.16528602,3097.2,3096.2,0.30803288]
[1768261921956,0.94158833,3097.1,3096.2,0.30803288]
[1768261922259,0.94158833,3097.0,3096.2,0.30803288]
[1768261922461,0.94158833,3096.9,3096.2,0.30803288]
[1768261922657,0.94158833,3096.8,3096.2,0.30803288]
[1768261922958,0.16163,3097.1,3096.2,0.30803288]
[1768261923158,0.94159235,3097.0,3096.2,0.30803288]
[1768261923358,0.94159235,3096.9,3096.2,0.30803288]
[1768261923660,0.94159235,3096.8,3096.2,0.30803288]
[1768261923861,0.94160114,3096.7,3096.0,0.00484574]
[1768261924058,0.94165235,3096.6,3096.0,0.00484574]
[1768261924258,0.2714807,3097.2,3096.0,0.00484574]
[1768261924459,0.16164,3096.9,3096.0,0.00484574]
[1768261924661,0.94165437,3096.8,3096.0,0.00484574]
[1768261924861,0.94165437,3096.7,3096.0,0.00484574]
[1768261925055,0.16165,3096.8,3096.0,0.00484574]
[1768261925256,0.94164507,3096.7,3096.0,0.00484574]
[1768261925455,0.94164507,3096.6,3096.0,0.00484574]
[1768261925656,0.16165,3096.8,3096.0,0.00484574]
[1768261925955,0.94164388,3096.7,3096.0,0.00484574]
[1768261926258,0.94164388,3096.6,3096.0,0.00484574]
[1768261926457,0.16165,3096.8,3096.0,0.00484574]
[1768261926753,0.9416903,3096.7,3096.0,0.00484574]
[1768261926957,0.9416903,3096.6,3096.0,0.00484574]
[1768261927160,0.16165,3096.8,3096.0,0.00484574]
[1768261927361,0.94168784,3096.7,3096.0,0.00484574]
[1768261927659,0.94168784,3096.6,3096.0,0.00484574]
[1768261927854,0.16165,3096.8,3096.0,0.00484574]
[1768261928149,0.94172261,3096.7,3096.0,0.00484574]
[1768261928353,0.94172261,3096.6,3096.0,0.00484574]
[1768261928555,0.16165,3096.8,3096.0,0.00484574]
[1768261928753,0.94175723,3096.7,3096.0,0.00484574]
[1768261928964,0.94175723,3096.6,3096.0,0.00484574]
[1768261929163,0.16165,3096.8,3096.0,0.00484574]
[1768261929461,0.94175061,3096.7,3096.0,0.00484574]
[1768261929655,0.94175061,3096.6,3096.0,0.00484574]
[1768261929855,0.16165,3096.8,3096.0,0.00484574]
[1768261930057,0.94129024,3096.7,3096.0,0.00484574]
[1768261930351,0.94129024,3096.6,3096.0,0.00484574]
[1768261930550,0.16165,3096.8,3096.0,0.00484574]
[1768261930750,0.94133027,3096.7,3096.0,0.00484574]
[1768261930964,0.94133027,3096.6,3096.0,0.00484574]
[1768261931164,0.16165,3096.8,3096.0,0.00484574]
[1768261931366,0.94131811,3096.7,3096.0,0.00484574]
[1768261931564,0.94131811,3096.6,3096.0,0.00484574]
[1768261931759,0.16165,3096.8,3096.0,0.00484574]
[1768261931957,0.94131695,3096.7,3096.0,0.00484574]
[1768261932158,0.94131695,3096.6,3096.0,0.00484574]
[1768261932359,0.16165,3096.8,3096.0,0.00484574]
[1768261932567,0.94130006,3096.7,3096.0,0.00484574]
[1768261932766,0.94130006,3096.6,3096.0,0.00484574]
[1768261932959,0.16165,3096.8,3096.0,0.00484574]
[1768261933160,0.94130006,3096.7,3096.0,0.00484574]
[1768261933360,0.94130006,3096.6,3096.0,0.00484574]
[1768261933566,0.16165,3096.8,3096.0,0.00484574]
[1768261933769,0.94128288,3096.7,3096.0,0.00484574]
[1768261933968,0.94128288,3096.6,3096.0,0.00484574]
[1768261934268,0.16165,3096.8,3096.0,0.00484574]
[1768261934469,0.9412752,3096.7,3096.0,0.00484574]
[1768261934666,0.9412752,3096.6,3096.0,0.00484574]
[1768261934965,0.16165,3096.8,3096.0,0.00484574]
[1768261935166,0.9412668,3096.7,3096.0,0.00484574]
[1768261935356,0.9412668,3096.6,3096.0,0.00484574]
[1768261935563,0.16165,3096.8,3096.0,0.00484574]
[1768261935760,0.94125151,3096.7,3096.0,0.00484574]
[1768261935961,0.94125151,3096.6,3096.0,0.00484574]
[1768261936167,0.16165,3096.8,3096.0,0.00484574]
[1768261936367,0.94124657,3096.7,3096.0,0.00484574]
[1768261936666,0.94124657,3096.6,3096.0,0.00484574]
[1768261936967,0.16165,3096.8,3096.0,0.00484574]
[1768261937163,0.94123506,3096.7,3096.0,0.00484574]
[1768261937364,0.94123506,3096.6,3096.0,0.00484574]
[1768261937564,0.16165,3096.8,3096.0,0.00484574]
[1768261937869,0.94122376,3096.7,3096.0,0.00484574]
[1768261938066,0.94122376,3096.6,3096.0,0.00484574]
[1768261938371,0.16165,3096.8,3096.0,0.00484574]
[1768261938571,0.94121497,3096.7,3096.0,0.00484574]
[1768261938770,0.94121497,3096.6,3096.0,0.00484574]
[1768261938973,0.16165,3096.8,3096.0,0.00484574]
[1768261939169,0.94121497,3096.7,3096.0,0.00484574]
[1768261939369,0.94121497,3096.6,3096.0,0.00484574]
[1768261939673,0.16165,3096.8,3096.0,0.00484574]
[1768261939866,0.94121755,3096.7,3096.0,0.00484574]
[1768261940068,0.94121755,3096.6,3096.0,0.00484574]
[1768261940274,0.16165,3096.8,3096.0,0.00484574]
[1768261940475,0.94122309,3096.7,3096.0,0.00484574]
[1768261940775,0.94122309,3096.6,3096.0,0.00484574]
[1768261940978,0.16165,3096.8,3096.0,0.00484574]
[1768261941176,0.94122309,3096.7,3096.0,0.00484574]
[1768261941368,0.94122309,3096.6,3096.0,0.00484574]
[1768261941570,0.16165,3096.8,3096.0,0.00484574]
[1768261941771,0.94123389,3096.7,3096.0,0.00484574]
[1768261942070,0.94123389,3096.6,3096.0,0.00484574]
[1768261942269,0.16165,3096.8,3096.0,0.00484574]
[1768261942466,0.94124803,3096.7,3096.0,0.00484574]
[1768261942675,0.94124803,3096.6,3096.0,0.00484574]
[1768261942871,0.16165,3096.8,3096.0,0.00484574]
[1768261943071,0.94124803,3096.7,3096.0,0.00484574]
[1768261943275,0.94124803,3096.6,3096.0,0.00484574]
[1768261943573,0.16165,3096.8,3096.0,0.00484574]
[1768261943774,0.94126621,3096.7,3096.0,0.00484574]
[1768261944073,0.16167,3096.4,3095.0,0.27578732]
[1768261944275,0.94133641,3096.3,3095.0,0.27578732]
[1768261944470,0.16167,3096.4,3095.0,0.27578732]
[1768261944670,0.94117807,3096.3,3095.0,0.27578732]
[1768261944967,0.16167,3096.4,3095.0,0.27578732]
[1768261945167,0.94118433,3096.3,3095.0,0.27578732]
[1768261945379,0.16167,3096.4,3095.0,0.27578732]
[1768261945678,0.00484574,3096.0,3095.0,0.27578732]
[1768261967894,0.00484574,3096.0,3095.2,0.00484574]
[1768261968094,0.00484574,3096.0,3095.2,0.24309458]
[1768261983305,0.00484574,3096.0,3095.5,0.23824884]
[1768261986702,0.16167,3096.4,3095.5,0.23824884]
[1768261986905,0.94221432,3096.3,3095.5,0.23824884]
[1768261987103,0.16167,3096.4,3095.5,0.23824884]
[1768261987399,0.94221438,3096.3,3095.5,0.23824884]
[1768261987599,0.16167,3096.4,3095.5,0.23824884]
[1768261987900,0.94221373,3096.3,3095.5,0.23824884]
[1768261988095,0.16167,3096.4,3095.5,0.23824884]
[1768261988393,0.94221373,3096.3,3095.5,0.23824884]
[1768261988589,0.16167,3096.4,3095.9,0.23099184]
[1768261988804,0.16164,3097.0,3095.9,0.23099184]
[1768261988995,0.94215072,3096.9,3095.9,0.23099184]
[1768261989201,0.94215072,3096.8,3095.9,0.23099184]
[1768261989400,0.94215072,3096.7,3095.9,0.23099184]
[1768261989604,0.94215072,3096.6,3095.9,0.23099184]
[1768261989900,0.94215072,3096.5,3095.9,0.23099184]
[1768261990201,0.16164,3097.0,3095.9,0.23099184]
[1768261990402,0.94160651,3096.9,3095.9,0.23099184]
[1768261990598,0.94160651,3096.8,3095.9,0.23099184]
[1768261990799,0.94160651,3096.7,3095.9,0.23099184]
[1768261990994,0.94160651,3096.6,3095.9,0.23099184]
[1768261991200,0.94160651,3096.5,3095.9,0.23099184]
[1768261991395,0.16164,3097.0,3095.9,0.23099184]
[1768261991603,0.94140363,3096.9,3095.9,0.23099184]
[1768261991902,0.94140363,3096.8,3095.9,0.23099184]
[1768261992101,0.94140363,3096.7,3095.9,0.23099184]
[1768261992290,0.94140363,3096.6,3095.9,0.23099184]
[1768261992501,0.94140363,3096.5,3095.9,0.23099184]
[1768261992704,0.16164,3097.0,3095.9,0.23099184]
[1768261992904,0.94131269,3096.9,3095.9,0.23099184]
[1768261993097,0.94131269,3096.8,3095.9,0.23099184]
[1768261993297,0.94131269,3096.7,3095.9,0.23099184]
[1768261993498,0.94131269,3096.6,3095.9,0.23099184]
[1768261993703,0.94131269,3096.5,3095.9,0.23099184]
[1768261993904,0.16164,3097.0,3095.9,0.23099184]
[1768261994097,0.94124871,3096.9,3095.9,0.23099184]
[1768261994402,0.94124871,3096.8,3095.9,0.23099184]
[1768261994607,0.94124871,3096.7,3095.9,0.23099184]
[1768261994905,0.94124871,3096.6,3095.9,0.23099184]
[1768261995098,0.94124871,3096.5,3095.9,0.23099184]
[1768261995294,0.16164,3097.0,3095.9,0.23099184]
[1768261995495,0.94113891,3096.9,3095.9,0.23099184]
[1768261995803,0.94113891,3096.8,3095.9,0.23099184]
[1768261996006,0.94113891,3096.7,3095.9,0.23099184]
[1768261996200,0.94113891,3096.6,3095.9,0.23099184]
[1768261996403,0.94113891,3096.5,3095.9,0.23099184]
[1768261996601,0.16164,3096.9,3095.9,0.23099184]
[1768261996802,0.94109706,3096.8,3095.9,0.23099184]
[1768261997010,0.94109706,3096.7,3095.9,0.23099184]
[1768261997203,0.94109706,3096.6,3095.9,0.23099184]
[1768261997399,0.94109706,3096.5,3095.9,0.23099184]
[1768261997698,0.16164,3096.9,3095.9,0.23099184]
[1768261997901,0.94106174,3096.8,3095.9,0.23099184]
[1768261998100,0.94106174,3096.7,3095.9,0.23099184]
[1768261998401,0.94106174,3096.6,3095.9,0.23099184]
[1768261998700,0.94106174,3096.5,3095.9,0.23099184]
[1768261998901,0.16164,3096.9,3095.9,0.23099184]
[1768261999102,0.94103298,3096.8,3095.9,0.23099184]
[1768261999303,0.94103298,3096.7,3095.9,0.23099184]
[1768261999506,0.94103298,3096.6,3095.9,0.23099184]
[1768261999707,0.16164,3096.9,3095.9,0.23099184]
[1768262000008,0.94101041,3096.8,3095.9,0.23099184]
[1768262000206,0.94101041,3096.7,3095.9,0.23099184]
[1768262000400,0.94101041,3096.6,3095.9,0.23099184]
[1768262000606,0.16164,3096.9,3095.9,0.23099184]
[1768262000904,0.94099319,3096.8,3095.9,0.23099184]
[1768262001202,0.94099319,3096.7,3095.9,0.23099184]
[1768262001397,0.94099319,3096.6,3095.9,0.23099184]
[1768262001604,0.16164,3096.9,3095.9,0.23099184]
[1768262001808,0.94098064,3096.8,3095.9,0.23099184]
[1768262002104,0.94098064,3096.7,3095.9,0.23099184]
[1768262002303,0.94098064,3096.6,3095.9,0.23099184]
[1768262002514,0.16164,3096.9,3095.9,0.23099184]
[1768262002708,0.94097815,3096.8,3095.9,0.23099184]
[1768262003008,0.94097815,3096.7,3095.9,0.23099184]
[1768262003207,0.94097815,3096.6,3095.9,0.23099184]
[1768262003409,0.16164,3096.9,3095.9,0.23099184]
[1768262003708,0.94097011,3096.8,3095.9,0.23099184]
[1768262003909,0.94097011,3096.7,3095.9,0.23099184]
[1768262004206,0.94097011,3096.6,3095.9,0.23099184]
[1768262004406,0.16164,3096.9,3095.9,0.23099184]
[1768262004606,0.94097214,3096.8,3095.9,0.23099184]
[1768262004807,0.94097214,3096.7,3095.9,0.23099184]
[1768262005011,0.94097214,3096.6,3095.9,0.23099184]
[1768262005214,0.16164,3096.9,3095.9,0.23099184]
[1768262005410,0.94097608,3096.8,3095.9,0.23099184]
[1768262005613,0.94097608,3096.7,3095.9,0.23099184]
[1768262005830,0.94097608,3096.6,3095.9,0.23099184]
[1768262006113,0.9409793,3096.5,3095.6,1.00303414]
[1768262006312,0.16165,3096.8,3095.6,1.00303414]
[1768262006513,0.94099293,3096.7,3095.6,1.00303414]
[1768262006712,0.94099293,3096.6,3095.6,1.00303414]
[1768262006911,0.94099293,3096.5,3095.6,1.00303414]
[1768262007216,0.16165,3096.8,3095.6,1.00303414]
[1768262007415,0.94100999,3096.7,3095.6,1.23393591]
[1768262007615,0.94100999,3096.6,3095.6,1.23393591]
[1768262007920,0.94100999,3096.5,3095.6,1.23393591]
[1768262008214,0.16165,3096.8,3095.6,1.23393591]
[1768262008412,0.94102539,3096.7,3095.6,1.23393591]
[1768262008613,0.94102539,3096.6,3095.6,1.23393591]
[1768262008808,0.94102539,3096.5,3095.6,1.23393591]
[1768262009009,0.16165,3096.8,3095.6,1.23393591]
[1768262009210,0.94103337,3096.7,3095.6,1.23393591]
[1768262009416,0.94103337,3096.6,3095.6,1.23393591]
[1768262009716,0.94103337,3096.5,3095.6,1.23393591]
[1768262009908,0.16165,3096.8,3095.6,1.23393591]
[1768262010108,0.94106265,3096.7,3095.6,1.23393591]
[1768262010305,0.94106265,3096.6,3095.6,1.23393591]
[1768262010511,0.94106265,3096.5,3095.6,1.23393591]
[1768262010808,0.16165,3096.8,3095.6,1.23393591]
[1768262011009,0.94107142,3096.7,3095.6,1.23393591]
[1768262011209,0.16165,3096.8,3095.6,1.23393591]
[1768262011210,0.94107142,3096.6,3095.6,1.23393591]
[1768262011410,0.94107142,3096.5,3095.6,1.23393591]
[1768262011619,0.16165,3096.8,3095.6,1.23393591]
[1768262011822,0.94110698,3096.7,3095.6,1.23393591]
[1768262012117,0.94110698,3096.6,3095.6,1.23393591]
[1768262012319,0.94110698,3096.5,3095.6,1.23393591]
[1768262012618,0.16165,3096.8,3095.6,1.23393591]
[1768262012814,0.94114958,3096.7,3095.6,1.23393591]
[1768262013021,0.94114958,3096.6,3095.6,1.23393591]
[1768262013216,0.94114958,3096.5,3095.6,1.23393591]
[1768262013419,0.16165,3096.8,3095.6,1.23393591]
[1768262013620,0.94120038,3096.7,3095.6,1.23393591]
[1768262013920,0.94120038,3096.6,3095.6,1.23393591]
[1768262014117,0.94120038,3096.5,3095.6,1.23393591]
[1768262014321,0.16165,3096.7,3095.6,1.23393591]
[1768262014521,0.94126206,3096.6,3095.6,1.23393591]
[1768262014820,0.94126206,3096.5,3095.6,1.23393591]
[1768262015008,0.16165,3096.7,3095.6,1.23393591]
[1768262015311,0.94126204,3096.6,3095.6,1.23393591]
[1768262015510,0.94126204,3096.5,3095.6,1.23393591]
[1768262015709,0.16165,3096.7,3095.6,1.23393591]
[1768262015913,0.94133706,3096.6,3095.6,1.23393591]
[1768262016116,0.94133706,3096.5,3095.6,1.23393591]
[1768262016316,0.16165,3096.7,3095.6,1.23393591]
[1768262016517,0.94143243,3096.6,3095.6,1.23393591]
[1768262016719,0.94143243,3096.5,3095.6,1.23393591]
[1768262016921,0.16165,3096.7,3095.6,1.23393591]
[1768262017122,0.94143243,3096.6,3095.7,0.21803739]
[1768262017314,0.94143243,3096.5,3095.7,0.21803739]
[1768262017526,0.16165,3096.7,3095.7,0.21803739]
[1768262017812,0.94156183,3096.6,3095.7,0.21803739]
[1768262018010,0.94156183,3096.5,3095.7,0.21803739]
[1768262018214,0.16165,3096.7,3095.7,0.21803739]
[1768262018514,0.94156183,3096.6,3095.7,0.21803739]
[1768262018718,0.94156183,3096.5,3095.7,0.21803739]
[1768262019016,0.16165,3096.7,3095.7,0.21803739]
[1768262019217,0.94182871,3096.6,3095.7,0.21803739]
[1768262019418,0.94182871,3096.5,3095.7,0.21803739]
[1768262019619,0.16166,3096.6,3095.7,0.21803739]
[1768262019818,0.9418402,3096.5,3095.7,0.21803739]
[1768262022425,0.9418402,3096.5,3096.1,0.21803739]
[1768262022627,0.00365602,3097.2,3095.4,0.21803739]
[1768262022925,1.00303414,3097.0,3095.6,1.22107153]
[1768262023323,1.00303414,3096.8,3095.6,0.21803739]
[1768262023521,1.00303414,3096.9,3095.6,0.21803739]
[1768262024632,0.16166,3096.6,3095.6,0.21803739]
[1768262040540,1.00303414,3096.5,3095.6,0.21803739]
[1768262040744,0.1539383,3097.2,3095.2,0.22288313]
[1768262040745,1.00303414,3096.3,3095.2,0.22288313]
[1768262041547,1.00303414,3095.7,3095.2,0.00484574]
[1768262041743,1.00303414,3095.9,3095.2,0.00484574]
[1768262042648,1.16472414,3096.1,3095.2,0.00484574]
[1768262042853,0.93656663,3096.0,3095.2,0.00484574]
[1768262043150,1.16472414,3096.1,3095.2,0.00484574]
[1768262043447,0.93621998,3096.0,3095.2,0.00484574]
[1768262043649,1.16472414,3096.1,3095.2,0.00484574]
[1768262043843,0.93619554,3096.0,3095.2,0.00484574]
[1768262044153,1.16472414,3096.1,3095.2,0.00484574]
[1768262045355,0.16169,3096.1,3095.2,0.00484574]
[1768262065561,0.16169,3096.1,3095.2,0.22127614]
[1768262068365,0.93935656,3096.0,3095.2,0.22127614]
[1768262068665,0.16169,3096.1,3095.2,0.22127614]
[1768262068867,0.93935656,3096.0,3095.2,0.22127614]
[1768262069068,0.16169,3096.1,3095.2,0.22127614]
[1768262069267,0.93935656,3096.0,3095.2,0.22127614]
[1768262069457,0.16169,3096.1,3095.2,0.22127614]
[1768262069661,0.93984065,3096.0,3095.2,0.22127614]
[1768262069862,0.16169,3096.1,3095.2,0.22127614]
[1768262070060,0.93984065,3096.0,3095.2,0.22127614]
[1768262070262,0.16169,3096.1,3095.2,0.22127614]
[1768262070568,0.93985434,3096.0,3095.2,0.22127614]
[1768262070772,0.16169,3096.1,3095.2,0.22127614]
[1768262070968,0.93985434,3096.0,3095.2,0.22127614]
[1768262071270,0.94060612,3095.9,3095.2,0.22127614]
[1768262071456,0.16169,3096.1,3095.2,0.22127614]
[1768262071761,0.94060612,3096.0,3095.2,0.22127614]
[1768262071961,0.94060612,3095.9,3095.2,0.22127614]
[1768262072162,0.16169,3096.1,3095.2,0.22127614]
[1768262072361,0.94060501,3096.0,3095.2,0.22127614]
[1768262072570,0.94060501,3095.9,3095.2,0.22127614]
[1768262072772,0.16169,3096.1,3095.2,0.22127614]
[1768262072966,0.94060472,3096.0,3095.2,0.22127614]
[1768262073166,0.94060472,3095.9,3095.2,0.22127614]
[1768262073367,0.16169,3096.1,3095.2,0.22127614]
[1768262073667,0.94060488,3096.0,3095.2,0.22127614]
[1768262073867,0.94060488,3095.9,3095.2,0.22127614]
[1768262074068,0.16169,3096.1,3095.2,0.22127614]
[1768262074267,0.94060488,3096.0,3095.2,0.22127614]
[1768262074475,0.94060488,3095.9,3095.2,0.22127614]
[1768262074677,0.16169,3096.1,3095.2,0.22127614]
[1768262074873,0.94060537,3096.0,3095.2,0.22127614]
[1768262075071,0.94060537,3095.9,3095.2,0.22127614]
[1768262075370,0.16169,3096.1,3095.2,0.22127614]
[1768262075671,0.94060621,3096.0,3095.2,0.22127614]
[1768262075871,0.94060621,3095.9,3095.2,0.22127614]
[1768262076070,0.16169,3096.1,3095.2,0.22127614]
[1768262076272,0.94060621,3096.0,3095.2,0.22127614]
[1768262076471,0.94060621,3095.9,3095.2,0.22127614]
[1768262076671,0.16169,3096.1,3095.2,0.22127614]
[1768262076873,0.94060725,3096.0,3095.2,0.22127614]
[1768262077073,0.94060725,3095.9,3095.2,0.22127614]
[1768262077274,0.16169,3096.1,3095.2,0.22127614]
[1768262077475,0.94060868,3096.0,3095.2,0.22127614]
[1768262077777,0.94060868,3095.9,3095.2,0.22127614]
[1768262078073,0.16169,3096.1,3095.2,0.22127614]
[1768262078274,0.94060661,3096.0,3095.2,0.22127614]
[1768262078471,0.94060661,3095.9,3095.2,0.22127614]
[1768262078674,0.16169,3096.1,3095.2,0.22127614]
[1768262078976,0.94060738,3096.0,3095.2,0.22127614]
[1768262079276,0.94060738,3095.9,3095.2,0.22127614]
[1768262079474,0.16169,3096.1,3095.2,0.22127614]
[1768262079675,0.94060646,3096.0,3095.2,0.22127614]
[1768262079975,0.94060646,3095.9,3095.2,0.22127614]
[1768262080175,0.16169,3096.1,3095.2,0.22127614]
[1768262080371,0.94061422,3096.0,3095.2,0.22127614]
[1768262080570,0.94061422,3095.9,3095.2,0.22127614]
[1768262080772,0.16169,3096.1,3095.2,0.22127614]
[1768262080970,0.94061422,3096.0,3095.2,0.22127614]
[1768262081170,0.94061422,3095.9,3095.2,0.22127614]
[1768262081371,0.16169,3096.1,3095.2,0.22127614]
[1768262081579,0.94061372,3096.0,3095.2,0.22127614]
[1768262081877,0.94061372,3095.9,3095.2,0.22127614]
[1768262082076,0.16169,3096.1,3095.2,0.22127614]
[1768262082280,0.94061372,3096.0,3095.2,0.22127614]
[1768262082478,0.94061372,3095.9,3095.2,0.22127614]
[1768262082680,0.16169,3096.1,3095.2,0.22127614]
[1768262082872,0.94061551,3096.0,3095.2,0.00484574]
[1768262083170,0.94061551,3095.9,3095.2,0.00484574]
[1768262083371,0.16169,3096.1,3095.2,0.00484574]
[1768262083575,0.94061769,3096.0,3095.2,0.00484574]
[1768262083770,0.94061769,3095.9,3095.2,0.00484574]
[1768262083978,0.16169,3096.1,3095.2,0.00484574]
[1768262084177,0.94061793,3096.0,3095.2,0.00484574]
[1768262084377,0.94061793,3095.9,3095.2,0.00484574]
[1768262084567,0.16169,3096.1,3095.2,0.00484574]
[1768262084771,0.94061744,3096.0,3095.2,0.00484574]
[1768262084986,0.94061744,3095.9,3095.2,0.00484574]
[1768262085179,0.16169,3096.1,3095.2,0.00484574]
[1768262085378,0.94061659,3096.0,3095.2,0.00484574]
[1768262085574,0.94061659,3095.9,3095.2,0.00484574]
[1768262085879,0.16169,3096.1,3095.2,0.00484574]
[1768262086080,0.94061522,3096.0,3095.2,0.00484574]
[1768262086278,0.94061522,3095.9,3095.2,0.00484574]
[1768262086576,0.16169,3096.1,3095.2,0.00484574]
[1768262086778,0.94061618,3096.0,3095.2,0.00484574]
[1768262087081,0.94061618,3095.9,3095.2,0.00484574]
[1768262087282,0.16169,3096.1,3095.2,0.00484574]
[1768262087581,0.94061589,3096.0,3095.2,0.00484574]
[1768262087781,0.94061589,3095.9,3095.2,0.00484574]
[1768262087982,0.16169,3096.1,3095.2,0.00484574]
[1768262088182,0.94061589,3096.0,3095.2,0.00484574]
[1768262088380,0.94061589,3095.9,3095.2,0.00484574]
[1768262088580,0.16169,3096.1,3095.2,0.00484574]
[1768262088784,0.94061477,3096.0,3095.2,0.00484574]
[1768262088982,0.94061477,3095.9,3095.2,0.00484574]
[1768262089182,0.16169,3096.1,3095.2,0.00484574]
[1768262089384,0.94059928,3096.0,3095.2,0.00484574]
[1768262089677,0.94059928,3095.9,3095.2,0.00484574]
[1768262089882,0.16169,3096.1,3095.2,0.00484574]
[1768262090188,0.94059956,3096.0,3095.2,0.00484574]
[1768262090483,0.94059956,3095.9,3095.2,0.00484574]
[1768262090783,0.16169,3096.1,3095.2,0.00484574]
[1768262090984,0.94058609,3096.0,3095.2,0.00484574]
[1768262091284,0.1617,3095.8,3095.2,0.00484574]
[1768262091485,0.1617,3095.8,3094.4,0.22887767]
[1768262091486,0.94058609,3095.7,3094.4,0.22887767]
[1768262094286,0.1617,3095.8,3094.4,0.22887767]
[1768262095390,0.00484574,3095.9,3094.3,0.00364429]
[1768262095391,0.94003339,3095.7,3094.3,0.00364429]
[1768262095684,0.16173,3095.3,3094.3,0.23252196]
[1768262100794,0.16173,3095.3,3094.5,0.22887767]
[1768262105298,0.16173,3095.3,3094.6,1.00352707]
[1768262106898,0.16173,3095.3,3094.6,1.22988153]
[1768262114305,0.16173,3095.3,3094.7,0.20963489]
[1768262116099,0.1617,3095.8,3095.0,1.21316196]
[1768262116403,0.1617,3095.8,3095.3,0.20963489]
[1768262122809,0.16167,3096.3,3095.3,0.20963489]
[1768262123010,0.93920833,3096.2,3095.4,1.00352707]
[1768262123313,0.16167,3096.3,3095.7,0.20963489]
[1768262127610,0.16167,3096.3,3095.9,0.20963489]
[1768262127907,1.00352707,3097.0,3095.9,0.20963489]
[1768262128100,0.9377965,3096.9,3095.9,0.20963489]
[1768262128302,0.16165,3096.7,3095.9,0.20963489]
[1768262128498,0.9377965,3096.6,3095.9,0.20963489]
[1768262128702,0.9377965,3096.5,3095.9,0.20963489]
[1768262129004,0.16165,3096.7,3095.9,0.20963489]
[1768262129202,0.93760125,3096.6,3095.9,0.20963489]
[1768262129519,0.93760125,3096.5,3095.9,0.20963489]
[1768262129722,0.16165,3096.7,3095.9,0.20963489]
[1768262130012,0.93744395,3096.6,3095.9,0.20963489]
[1768262130205,0.93744395,3096.5,3095.9,0.20963489]
[1768262130515,0.16165,3096.7,3095.9,0.20963489]
[1768262130707,0.93733147,3096.6,3095.9,0.20963489]
[1768262130907,0.16165,3096.7,3095.9,0.20963489]
[1768262131207,0.93733147,3096.6,3095.9,0.20963489]
[1768262131405,0.16165,3096.7,3095.9,0.20963489]
[1768262131715,0.93722363,3096.6,3095.9,0.20963489]
[1768262131908,0.16165,3096.7,3095.9,0.20963489]
[1768262132106,0.93721695,3096.6,3095.9,0.20963489]
[1768262132307,0.16165,3096.7,3095.9,0.20963489]
[1768262141326,0.93656268,3096.6,3095.9,0.20963489]
[1768262141518,0.16165,3096.7,3095.9,0.20963489]
[1768262141722,0.93656268,3096.6,3095.9,0.20963489]
[1768262142018,0.16165,3096.7,3095.9,0.20963489]
[1768262142205,0.93656268,3096.6,3095.9,0.20963489]
[1768262142519,0.16165,3096.7,3095.9,0.20963489]
[1768262142720,0.93672454,3096.6,3095.9,0.20963489]
[1768262142920,0.16165,3096.7,3095.9,0.20963489]
[1768262143225,0.93672454,3096.6,3095.9,0.20963489]
[1768262143409,0.16165,3096.7,3095.9,0.20963489]
[1768262143612,0.93692559,3096.6,3095.9,0.20963489]
[1768262143813,0.16165,3096.7,3095.9,0.20963489]
[1768262144013,0.93692559,3096.6,3095.9,0.20963489]
[1768262144213,0.16165,3096.7,3095.9,0.20963489]
[1768262144412,0.93717423,3096.6,3095.9,0.20963489]
[1768262144623,0.16165,3096.7,3095.9,0.20963489]
[1768262144821,0.93717423,3096.6,3095.9,0.20963489]
[1768262145022,0.16165,3096.7,3095.9,0.20963489]
[1768262145226,0.93717423,3096.6,3095.9,0.20963489]
[1768262145422,0.93717423,3096.5,3095.9,0.20963489]
[1768262145719,0.16165,3096.7,3095.9,0.20963489]
[1768262145920,0.93748469,3096.6,3095.9,0.20963489]
[1768262146120,0.93748469,3096.5,3095.9,0.20963489]
[1768262146323,0.16165,3096.7,3095.9,0.20963489]
[1768262146525,0.93773288,3096.6,3096.0,1.00352707]
[1768262146725,0.16165,3096.7,3096.0,1.22275527]
[1768262146927,0.93769938,3096.6,3096.0,1.22275527]
[1768262147126,0.16165,3096.7,3096.0,1.22275527]
[1768262147326,0.93769909,3096.6,3096.0,1.22275527]
[1768262147514,0.16165,3096.7,3096.0,1.22275527]
[1768262147719,0.93780888,3096.6,3096.0,1.22275527]
[1768262147927,0.16165,3096.7,3096.0,1.22275527]
[1768262148225,0.93780888,3096.6,3096.0,1.22275527]
[1768262148422,0.16165,3096.7,3096.0,1.22275527]
[1768262148622,0.93795189,3096.6,3096.0,1.22275527]
[1768262148828,0.16165,3096.7,3096.0,1.22275527]
[1768262149025,0.93795189,3096.6,3096.0,1.22275527]
[1768262149226,0.16165,3096.7,3096.0,1.22275527]
[1768262149526,0.93812644,3096.6,3096.0,1.22275527]
[1768262149726,0.16165,3096.7,3096.0,1.22275527]
[1768262149928,0.93812644,3096.6,3096.0,1.22275527]
[1768262150128,0.16165,3096.7,3096.0,1.22275527]
[1768262150329,0.93812644,3096.6,3096.0,1.22275527]
[1768262150627,0.16165,3096.7,3096.0,1.22275527]
[1768262150823,0.93835271,3096.6,3096.0,1.22275527]
[1768262151025,0.16165,3096.7,3096.1,0.2192282]
[1768262151218,0.93834747,3096.6,3096.1,0.2192282]
[1768262151417,0.16165,3096.7,3096.1,0.2192282]
[1768262151620,0.93863149,3096.6,3096.1,0.2192282]
[1768262151817,0.16165,3096.7,3096.1,0.2192282]
[1768262152021,0.93863163,3096.6,3096.1,0.2192282]
[1768262152231,0.16165,3096.7,3096.1,0.2192282]
[1768262152428,0.93906597,3096.6,3096.1,0.2192282]
[1768262152728,0.93906597,3096.5,3096.1,0.2192282]
[1768262153028,0.16165,3096.7,3096.1,0.2192282]
[1768262153229,0.93906606,3096.6,3096.1,0.2192282]
[1768262153429,0.93906606,3096.5,3096.1,0.2192282]
[1768262153623,0.16165,3096.7,3096.1,0.2192282]
[1768262153825,0.93910615,3096.6,3096.1,0.2192282]
[1768262154025,0.93910615,3096.5,3096.1,0.2192282]
[1768262154225,0.16165,3096.7,3096.1,0.2192282]
[1768262154532,0.93910615,3096.6,3096.1,0.2192282]
[1768262154732,0.93910615,3096.5,3096.1,0.2192282]
[1768262154933,0.16165,3096.7,3096.1,0.2192282]
[1768262155234,0.93910172,3096.6,3096.1,0.2192282]
[1768262155430,0.93910172,3096.5,3096.1,0.2192282]
[1768262155733,0.16165,3096.7,3096.1,0.2192282]
[1768262155936,0.93910906,3096.6,3096.1,0.2192282]